Cogmind - Beta 13 X2 @@@ ROGUE MODE // 2024.02.11 @ 06:04:02 Player: Minty Result: Destroyed by as-12201 with Assembled Heavy Rifle Performance ------------- Evolutions (0) 0 Regions Visited (2) 400 Robots Destroyed (10) 50 Value Destroyed (291) 291 Prototype IDs (4) 80 Alien Tech Used (0) 0 Bonus (21) 21 TOTAL SCORE: 842 Bonus ------- Follower Combat Kills 21 Cogmind --------- Core Integrity 0/250 Matter 300/300 Energy 208/250 System Corruption 3% Temperature Cool (5) Movement Walking (190) Ox1 Location -10/Mines Parts ------- > --- POWER (1) -------- Ion Engine > --- PROPULSION (2) --- Aluminum Leg > --- UTILITY (2) ------ Small Storage Unit > --- WEAPON (2) ------- Mining Laser > --- INVENTORY (8) ---- Ion Engine Light Treads Light Treads Wheel Wheel Medium Matter Pod (50) Peak State ------------ > --- POWER ------------ Light Nuclear Core > --- PROPULSION ------- Aluminum Leg Aluminum Leg > --- UTILITY ---------- Small Storage Unit Transport Network Coupler > --- WEAPON ----------- Beam Cannon Assault Rifle > --- INVENTORY -------- Ion Engine Ion Engine Light Treads Light Treads Wheel Wheel Medium Matter Pod Mining Laser [Rating: 9] Favorites ----------- Power Ion Engine Engine Ion Engine Power Core Light Nuclear Core Propulsion Aluminum Leg Leg Aluminum Leg Utility Small Storage Unit Storage Small Storage Unit Processor Transport Network Coupler Weapon Assault Rifle Energy Cannon Beam Cannon Ballistic Gun Assault Rifle Special Weapon Mining Laser Build | -11 -10 -10 ------- Run | Yrd Mat Min Slots Evolved . | . . . Power . | . . . Propulsion . | . . . Utility . | . . . Weapon . | . . . Parts Attached 9 | . 1 8 Power 2 | . . 2 Engine 1 | . . 1 Core 1 | . . 1 Reactor . | . . . Propulsion . | . . . Treads . | . . . Leg . | . . . Wheel . | . . . Hover . | . . . Flight . | . . . Utility 2 | . 1 1 Device . | . . . Storage 1 | . . 1 Processor 1 | . 1 . Hackware . | . . . Protection . | . . . Artifact . | . . . Weapon 5 | . . 5 Energy Gun . | . . . Energy Cannon 2 | . . 2 Ballistic Gun 1 | . . 1 Ballistic Cannon . | . . . Launcher . | . . . Special Weapon 2 | . . 2 Impact Weapon . | . . . Slashing Weapon . | . . . Piercing Weapon . | . . . Special Melee Weapon . | . . . Unidentified Prototypes . | . . . Parts Lost 5 | . . 5 Power 1 | . . 1 Propulsion 1 | . . 1 Utility 1 | . . 1 Weapon 2 | . . 2 Highest Loss Streak 3 | . . 3 To Critical Strikes . | . . . Average Slot Usage (%) 95 | . 93 96 Engine 9 | . 14 8 Core 4 | . . 5 Leg 27 | . 28 27 Storage 14 | . 14 14 Processor 10 | . 7 11 Energy Cannon 9 | . . 12 Ballistic Gun 17 | . 28 14 Naked Turns . | . . . Heaviest Build 15 | 13 13 15 Greatest Support 20 | 20 20 20 Greatest Overweight (x) 1 | . . 1 Average Overweight (x) . | . . . Largest Inventory Capacity 8 | . 8 8 Average Capacity 8 | . 8 8 Most Carried 8 | . 8 8 Average Carried 7 | . 6 7 Final Capacity 8 | 8 8 8 Final Carried 8 | 6 8 6 Class Distribution -------------------- 100% | Mutant Dominant Class ---------------- Mutant | -10/Materials Mutant | -10/Mines Resources | -11 -10 -10 ----------- Run | Yrd Mat Min Matter Collected 500 | 200 64 236 Remotely . | . . . Salvage Created 418 | . 235 183 Parts 22 | . 18 4 Haulers Intercepted 1 | . 1 . Recyclers Shooed 1 | . 1 . Parts Field Recycled . | . . . Retrieved Matter . | . . . Parts Self-Destructed . | . . . Prevented . | . . . Kills | -11 -10 -10 ------- Run | Yrd Mat Min Combat Hostiles Destroyed 15 | . 6 9 Guns 8 | . 6 2 Cannons 7 | . . 7 Classes Destroyed 5 | . 3 2 Hauler 1 | . 1 . Swarmer 3 | . 3 . Grunt 5 | . 3 2 Demolisher 1 | . . 1 Assembled 6 | . . 6 Best Kill Streak 3 | . 3 3 Combat Bots Only 3 | . 3 3 Max Kills in Single Turn 1 | . 1 1 Gunslinging . | . . . Exploded . | . . . Melee . | . . . Uniques/NPCs Destroyed . | . . . Combat | -11 -10 -10 -------- Run | Yrd Mat Min Hostile Shots Fired 73 | . 26 47 Missed 23 | . 11 12 Damage Taken 762 | . 159 603 Core 251 | . 60 191 Absorbed by Shields . | . . . Core Remaining (%) 100 | 100 . . Volleys Fired 60 | . 25 35 Largest 2 | . 2 2 Hottest 100 | . 40 100 Shots Fired 116 | . 50 66 Gun 81 | . 50 31 Cannon 33 | . . 33 Launcher . | . . . Special 2 | . . 2 Kinetic 81 | . 50 31 Thermal 35 | . . 35 Explosive . | . . . Electromagnetic . | . . . Robot Hit Streak 11 | . 9 11 Robot Miss Streak 4 | . 3 4 Penetration Max . | . . . Secondary Targets 1 | . 1 . Max Gunslinging Chain 1 | . 1 . Shots Hit Robots 62 | . 30 32 Core Hits 27 | . 14 13 Critical Kills . | . . . Critical Parts Destroyed 2 | . 2 . Critical Strikes 2 | . 2 . Destroy 2 | . 2 . Melee Attacks . | . . . Impact . | . . . Slashing . | . . . Piercing . | . . . Sneak Attacks . | . . . Combat Hostiles . | . . . Follow-up Attacks . | . . . Damage Inflicted 762 | . 309 453 Guns 478 | . 303 175 Cannons 250 | . . 250 Explosions . | . . . Melee . | . . . Ramming 10 | . 6 4 Kinetic 478 | . 303 175 Thermal 274 | . . 274 Explosive . | . . . Electromagnetic . | . . . Impact . | . . . Slashing . | . . . Piercing . | . . . Highest Corruption 3 | . . 3 Average Corruption 3 | . . 3 Corruption Purged . | . . . Corruption Blocked . | . . . Effects 2 | . . 2 Message Errors 1 | . . 1 Energy Discharges 1 | . . 1 Overload Shots . | . . . Overflow Damage . | . . . Projectiles . | . . . Explosions . | . . . Melee . | . . . Knockbacks . | . . . Impact . | . . . Kinetic . | . . . Secondary . | . . . Self-Inflicted Damage . | . . . Shots . | . . . Rammed . | . . . Targets Rammed 2 | . 1 1 Kicked 2 | . 1 1 Crushed . | . . . Highest Temperature 90 | . 9 90 Average Temperature 33 | . 7 35 Received Heat Transfer 93 | . 66 27 Siege Activations . | . . . Robots Corrupted . | . . . Combat Hostiles . | . . . Parts Fried . | . . . Impact Corruptions . | . . . Robots Melted . | . . . Combat Hostiles . | . . . Parts Melted . | . . . Heat Transferred 568 | . . 568 Parts Sabotaged . | . . . Parts Stolen . | . . . Parts Stripped . | . . . Power Chain Reactions . | . . . Missiles Intercepted . | . . . Alert | -11 -10 -10 ------- Run | Yrd Mat Min Peak Influence 213 | . 187 213 Initial 72 | . . 72 Average 75 | . 107 66 Maximum Alert Level 1 | . . 1 Low Security (%) 90 | . 100 87 Level 1 9 | . . 12 Level 2 . | . . . Level 3 . | . . . Level 4 . | . . . Level 5 . | . . . High Security . | . . . Max Security . | . . . Squads Dispatched . | . . . Investigation . | . . . Extermination . | . . . Reinforcement . | . . . Assault . | . . . Garrison . | . . . Intercept . | . . . Searches Triggered . | . . . Construction Impeded . | . . . Haulers Reinforced . | . . . Active Scanning Responses . | . . . Cargo Convoy Interrupts . | . . . Stealth | -11 -10 -10 --------- Run | Yrd Mat Min Distress Signals . | . . . Communications Jammed . | . . . Distress Signals . | . . . Times Spotted 23 | . 10 13 Peak Tracking Total 3 | . 3 3 Tactical Retreats . | . . . Traps | -11 -10 -10 ------- Run | Yrd Mat Min Traps Triggered . | . . . Indirectly . | . . . Trap Hack Attempts . | . . . Triggered . | . . . Disarmed . | . . . Reprogrammed . | . . . Reused . | . . . Traps Extracted . | . . . Installed . | . . . Triggered . | . . . Machines | -11 -10 -10 ---------- Run | Yrd Mat Min Machines Disabled 1 | . . 1 Max in Single Turn 1 | . . 1 Machines Repaired . | . . . Machines Dismantled . | . . . Machines Sabotaged . | . . . Overloaded Fab Kills . | . . . Hacking | -11 -10 -10 --------- Run | Yrd Mat Min Machines Accessed 3 | . 2 1 Terminals 3 | . 2 1 Fabricators . | . . . Repair Stations . | . . . Recycling Units . | . . . Scanalyzers . | . . . Garrison Access . | . . . Total Hacks 8 | . 5 3 Successful 7 | . 5 2 Failed 1 | . . 1 Catastrophic . | . . . Database Lockouts . | . . . Manual 6 | . 4 2 Terminals 8 | . 5 3 Fabricators . | . . . Repair Stations . | . . . Recycling Units . | . . . Scanalyzers . | . . . Garrison Access . | . . . Terminal Hacks 6 | . 4 2 Record 1 | . . 1 Prototype ID Bank 2 | . 2 . Branch Access Points 1 | . 1 . Patrol Status 1 | . . 1 Zone Layout 1 | . 1 . Fabricator Hacks . | . . . Repair Station Hacks . | . . . Recycling Unit Hacks . | . . . Scanalyzer . | . . . Garrison Access Hacks . | . . . Unauthorized Hacks 1 | . 1 . Terminals 1 | . 1 . Botnet 1 | . 1 . Fabricators . | . . . Repair Stations . | . . . Recycling Units . | . . . Scanalyzers . | . . . Garrison Access . | . . . Data Cores Recovered . | . . . Used . | . . . Hacking Detections 3 | . 2 1 Full Trace Events 1 | . 1 . Feedback Events . | . . . Feedback Blocked . | . . . Robot Schematics Acquired . | . . . Robots Built . | . . . Authchips . | . . . Time . | . . . Total Robot Build Rating . | . . . Part Schematics Acquired . | . . . Parts Built . | . . . Authchips . | . . . Time . | . . . Total Part Build Rating . | . . . Parts Repaired . | . . . Time . | . . . Parts Recycled . | . . . Recycled Matter . | . . . Retrieved Matter . | . . . Retrieved Components . | . . . Parts Scanalyzed . | . . . Part Schematics Acquired . | . . . Parts Damaged . | . . . Bothacking | -11 -10 -10 ------------ Run | Yrd Mat Min Used RIF Installer . | . . . Robots Hacked . | . . . Non-combat . | . . . Combat . | . . . Robot Hacks Applied . | . . . Relay Couplers Released . | . . . Fabnet Peak Effective % . | . . . Robots Rewired . | . . . Allies Hacked . | . . . Hacks Repelled . | . . . Allies | -11 -10 -10 -------- Run | Yrd Mat Min Total Allies 3 | . . 3 Largest Group 3 | . . 3 Highest-Rated Group 40 | . . 40 Highest-Rated Ally 16 | . . 16 Total Orders 1 | . . 1 STAY 1 | . . 1 Ally Attacks 30 | . . 30 Total Damage 251 | . . 251 Kills 3 | . . 3 Allies Corrupted . | . . . Allies Melted . | . . . Intel | -11 -10 -10 ------- Run | Yrd Mat Min Robot Analysis Total . | . . . Derelict Logs Recovered 3 | . . 3 Drone Launches . | . . . Drone Recoveries . | . . . Exploration | -11 -10 -10 ------------- Run | Yrd Mat Min Turns Passed 918 | . 202 716 Spaces Moved 600 | 1 106 493 Core . | . . . Treads . | . . . Legs 600 | 1 106 493 Wheels . | . . . Hover . | . . . Flight . | . . . Fastest Speed 120 | 120 120 120 Average Speed 120 | 120 120 120 Slowest Speed 190 | 120 120 190 Overloaded Moves . | . . . Propulsion Burnouts . | . . . Robots Hopped . | . . . Cave-ins Triggered . | . . . Exploration Rate (%) 37 | 1 26 86 Regions Visited 2 Branch Regions 1 Pre-discovered Areas . | . . . Known Exits Taken 1 | . 1 . Unknown Exits Taken 1 | 1 . . Scrap Searched 1 | . . 1 Spaces Dug 1 | . . 1 Terrain Destroyed 1 | . . 1 Melee . | . . . Projectile 1 | . . 1 AOE . | . . . Terrain Rammed . | . . . Walls Destroyed . | . . . Machines Disabled . | . . . Actions | -11 -10 -10 --------- Run | Yrd Mat Min Total 685 | . 135 550 Wait 9 | . 1 8 Move 598 | . 105 493 Hop . | . . . Pick Up 3 | . 2 1 Fast Attach 2 | . 1 1 Attach 4 | . . 4 Detach 1 | . . 1 Swap 3 | . . 3 Drop 3 | . . 3 Fire 60 | . 25 35 Melee . | . . . Ram . | . . . Kick 2 | . 1 1 Crush . | . . . Escape Stasis . | . . . Rewire . | . . . Trap . | . . . Miscellaneous . | . . . Route ------- -11/Scrapyard -10/Materials -10/Mines (discovered 1 exit: [*Mat]) History --------- Turn | Location | Event 1 | -11/Scrapyard | Discovered new exit (range 0) 1 | -11/Scrapyard | Entered Materials 9 | -10/Materials | Identified exit to Mines 203 | -10/Materials | Entered Mines 228 | -10/Mines | Met a Derelict bent on vengeance 270 | -10/Mines | Assisted by bots powering up and referring to "LRC-V3" 306 | -10/Mines | Build established: Mutant 344 | -10/Mines | Learned location of 1 exit from Materials 369 | -10/Mines | Learned Materials emergency access door positions 472 | -10/Mines | Discovered new exit (range 12) 546 | -10/Mines | Assembled infested the area 781 | -10/Mines | Core integrity fell below 50% 796 | -10/Mines | Core integrity fell below 20% 919 | -10/Mines | Destroyed by as-12201 with Assembled Heavy Rifle Last Messages --------------- 00779_ Acquired 6 matter. 00781_ Transport Network Coupler destroyed. 00781_ System corrupted by crushing effect (+3). 00782_ Destroyed Asb. Hover Unit. 00784_ Lgt. Nuclear Core destroyed. 00788_ as-99993 destroyed. 00791_ as-43323 destroyed. 00797_ as-67049 destroyed. 00801_ Acquired 13 matter. 00810_ F7>8Y09W8LKHGLILPYABR 00810_ Acquired 6 matter. 00813_ The unstable cave ceiling collapses. 00814_ Acquired 15 matter. 00867_ System corrupted: Energy discharge (-82). 00887_ as-81203 destroyed. 00901_ K-01 Serf collects debris. 00906_ Aluminum Leg destroyed. 00907_ Assault Rifle destroyed. 00909_ Laser Drill disabled. 00911_ Beam Cannon destroyed. Map ----- +----------------------------------------------------+ | ??????????????##################????????# # | | ????????????????????????????????????????######"# | | ????????????????????????????????????????????## | | ???????????????????????????????????????????## | | ???????????????????????????????????????????# | | ???????????????????????????????????????????## | | ????????????????????????????????????????????## | | ?????????????????????????????????????????????# | | ????????????????????????###??????????????????# | | ??????????????????????## ##?????????????????# | | ?????????????????????? #?????????????????## | | ?????????????????????? #??????????????????# | | ?????????????????????? ###???????????????# | | ??????????????????????# ##??????????????## | | ?????????????????????## #???????????????# | | ????????????????????##=! % #??????????###### | | ??????????????##???##!%|""" #???????????# ## | | ??????????????%= ??# * """ #????????????# # | | ????????????! !"""?# "" #?????????????# | | ???????????!!% "" ## #?????????????# | | ???###???????=%""" #???????????### | | ??## ##?? = ## ##??????????## | | ??# #??###???????# [ #???????????# | | ?## ##???????????# %! ######??????# | | ?# ####????????# a %!%[#??????## ### | | ?# #######??## @ #####[#???????## ##?# | | ?## ##??## !##???#!#????????####??? | | ??## #???## ###### #??????????????# | | ???# #???## # ## #??????????????# | | ???# ##### ## ###????######??# | | ???# ## # # ###### # #### | | ???## ## #### % ## ## # | | ????###?## ##?######### # # ## | | ?????????## #?????????##### ## #%*% # # | | ??????????####?????????????# = % ## # | | ???????????????????????????## ## = | | ????????????????????????????# ## # # ! | | ????????????????????????????## ## # [ | | ?????????????????????????????#### ###### ## % | | ???????????????????????????????####????##### ## | | ???????????????????????????????????????????##### | | ???????????????????????????????????????????????? | | ???????????????????????????????????????????????? | | | | | | | | | | | | | | | +----------------------------------------------------+ Best States ------------- Heat Dissipation 25 Energy Generation 14 Energy Capacity 250 Matter Stores 300 Matter Capacity 300 Sight Range 16 Terrain Scan Density 10 Evasion (%) 55 Item Schematics ----------------- None Robot Schematics ------------------ None Fabricated ------------ Nothing Alien Tech Used ----------------- None Achievements -------------- None Challenges ------------ None Game ------ Seed OmegaSlugMinigun Manual? 0 Play Time 00:08:20 Cumulative 651.1 hours Start 2024.02.11 @ 05:59:02 End 2024.02.11 @ 06:04:02 Sessions 1 Manual Loads 0 Difficulty Rogue Special Mode None Game No. 647 Rogue 374 Adventurer 123 Explorer 150 Win Type - Total 25 Types 19/0/4/1/0/0/0/1/0 Lore% 80 Gallery% 91 Achievement% 76 Wizard Run 0 Options --------- ASCII 0 Keyboard 1 Movement Numpad Keybinds 0 Fullscreen 2 Font 18/X11Bold Map View 76x50 Zoom Use 1% Tactical HUD 1 Map Filters NONE Filters NONE Steam 1 RUN: 6c55166b-56b6-450c-9c51-12cfc82e8935